Cogmind - Beta 10.2 @@@ ROGUE MODE // 2020.11.01 @ 16:23:20 // Halloween2020/ForbiddenLore Player: cd4337 Result: Destroyed by 8R-AWN with 8R-AWN's Boregun Performance ------------- Evolutions (0) 0 Regions Visited (3) 600 Robots Destroyed (13) 65 Value Destroyed (166) 166 Prototype IDs (2) 40 Alien Tech Used (0) 0 Bonus (73) 73 TOTAL SCORE: 944 Bonus ------- Follower Combat Kills 115 Friendly Fire -42 Cogmind --------- Core Integrity 0/250 Matter 300/300 Energy 125/125 System Corruption 0% Temperature Cool (0) Movement Core (400) Ox7 Location -10/Exiles Parts ------- > --- POWER (1) -------- Light Ion Engine > --- PROPULSION (2) --- (None) > --- UTILITY (2) ------ Heat Sink Large Storage Unit > --- WEAPON (2) ------- Rocket Launcher > --- INVENTORY (10) --- Ion Engine Light Ion Engine Sensor Array Peak State ------------ > --- POWER ------------ Light Ion Engine > --- PROPULSION ------- Aluminum Leg Aluminum Leg > --- UTILITY ---------- Heat Sink Small Storage Unit > --- WEAPON ----------- EM Pulse Gun Assault Rifle > --- INVENTORY -------- Light Ion Engine Light Treads Small Laser [Rating: 7] Favorites ----------- Power Light Ion Engine Engine Light Ion Engine Propulsion Aluminum Leg Treads Light Treads Leg Aluminum Leg Utility Heat Sink Device Heat Sink Storage Large Storage Unit Weapon Assault Rifle Energy Gun EM Pulse Gun Ballistic Gun Assault Rifle Launcher Rocket Launcher Build | -11 -10 -10 -10 ------- Run | Scr Mat Min Exi Slots Evolved . | . . . . Power . | . . . . Propulsion . | . . . . Utility . | . . . . Weapon . | . . . . Parts Attached 14 | 6 2 3 3 Power 2 | 1 . 1 . Engine 2 | 1 . 1 . Core . | . . . . Reactor . | . . . . Propulsion 3 | 2 . . 1 Treads 1 | . . . 1 Leg 2 | 2 . . . Wheel . | . . . . Hover . | . . . . Flight . | . . . . Utility 3 | 1 2 . . Device 1 | . 1 . . Storage 2 | 1 1 . . Processor . | . . . . Hackware . | . . . . Protection . | . . . . Artifact . | . . . . Weapon 6 | 2 . 2 2 Energy Gun 2 | 1 . . 1 Energy Cannon . | . . . . Ballistic Gun 3 | 1 . 2 . Ballistic Cannon . | . . . . Launcher 1 | . . . 1 Special Weapon . | . . . . Impact Weapon . | . . . . Slashing Weapon . | . . . . Piercing Weapon . | . . . . Special Melee Weapon . | . . . . Unidentified Prototypes . | . . . . Parts Lost 8 | . . 3 5 Power . | . . . . Propulsion 3 | . . 1 2 Utility . | . . . . Weapon 5 | . . 2 3 Highest Loss Streak 5 | . . 2 5 Average Slot Usage (%) 83 | . 98 79 79 Engine 14 | . 14 14 14 Leg 17 | . 28 14 4 Device 13 | . 13 14 14 Storage 14 | . 14 14 14 Energy Gun 3 | . 14 . 2 Ballistic Gun 19 | . 14 21 18 Naked Turns . | . . . . Heaviest Build 24 | 11 24 24 24 Greatest Support 20 | 3 20 20 20 Greatest Overweight (x) 7 | 3 1 2 7 Average Overweight (x) 1 | 1 . 1 1 Largest Inventory Capacity 10 | 6 10 10 10 Average Capacity 9 | 5 7 10 10 Most Carried 8 | 4 7 8 6 Average Carried 5 | 2 5 6 4 Final Capacity 10 | 6 10 10 10 Final Carried 7 | 3 7 6 3 Class Distribution -------------------- 100% | Mutant Dominant Class ---------------- Mutant | -10/Materials Mutant | -10/Mines Mutant | -10/Exiles Resources | -11 -10 -10 -10 ----------- Run | Scr Mat Min Exi Matter Collected 496 | 199 153 72 72 Remotely . | . . . . Salvage Created 254 | . 163 17 74 Parts 16 | . 15 1 . Haulers Intercepted . | . . . . Recyclers Shooed . | . . . . Parts Field Recycled . | . . . . Retrieved Matter . | . . . . Parts Self-Destructed . | . . . . Prevented . | . . . . Kills | -11 -10 -10 -10 ------- Run | Scr Mat Min Exi Combat Hostiles Destroyed 10 | . 4 1 5 Guns 9 | . 4 1 4 AOE 1 | . . . 1 Classes Destroyed 4 | . 3 . 1 Watcher 3 | . 3 . . Swarmer 3 | . 2 1 . Grunt 2 | . 2 . . Assembled 5 | . . . 5 Best Kill Streak 5 | . 3 1 5 Combat Bots Only 5 | . 2 1 5 Max Kills in Single Turn 2 | . 1 1 2 Gunslinging 1 | . . . 1 Exploded 1 | . . . 1 Melee . | . . . . Uniques/NPCs Destroyed . | . . . . Combat | -11 -10 -10 -10 -------- Run | Scr Mat Min Exi Damage Taken 1199 | . 228 322 649 Core 267 | . 28 66 173 Absorbed by Shields . | . . . . Core Remaining (%) 100 | 100 . . . Volleys Fired 42 | . 24 9 9 Largest 2 | . 2 2 2 Hottest 60 | . 60 40 60 Shots Fired 78 | . 48 14 16 Gun 77 | . 48 14 15 Cannon . | . . . . Launcher 1 | . . . 1 Special . | . . . . Kinetic 50 | . 24 14 12 Thermal 3 | . . . 3 Explosive 1 | . . . 1 Electromagnetic 24 | . 24 . . Robot Hit Streak 7 | . 7 2 7 Robot Miss Streak 4 | . 4 2 3 Penetration Max . | . . . . Secondary Targets 3 | . 1 . 2 Max Gunslinging Chain 1 | . 1 . 1 Shots Hit Robots 44 | . 28 6 10 Core Hits 20 | . 9 2 9 Critical Hits . | . . . . Critical Kills . | . . . . Critical Parts Destroyed . | . . . . Melee Attacks . | . . . . Impact . | . . . . Slashing . | . . . . Piercing . | . . . . Sneak Attacks . | . . . . Combat Hostiles . | . . . . Follow-up Attacks . | . . . . Damage Inflicted 619 | . 390 78 151 Guns 555 | . 357 78 120 Cannons . | . . . . Explosions 64 | . 33 . 31 Melee . | . . . . Ramming . | . . . . Kinetic 310 | . 134 78 98 Thermal 55 | . 33 . 22 Explosive 31 | . . . 31 Electromagnetic 223 | . 223 . . Impact . | . . . . Slashing . | . . . . Piercing . | . . . . Highest Corruption . | . . . . Average Corruption . | . . . . Corruption Purged . | . . . . Overload Shots . | . . . . Overflow Damage . | . . . . Projectiles . | . . . . Explosions . | . . . . Melee . | . . . . Knockbacks . | . . . . Impact . | . . . . Kinetic . | . . . . Secondary . | . . . . Self-Inflicted Damage 17 | . 17 . . Shots 1 | . 1 . . Rammed . | . . . . Targets Rammed . | . . . . Kicked . | . . . . Crushed . | . . . . Highest Temperature 10 | . 2 . 10 Average Temperature 8 | . 2 . 10 Received Heat Transfer 153 | . 84 . 69 Siege Activations . | . . . . Robots Corrupted . | . . . . Combat Hostiles . | . . . . Parts Fried 2 | . 2 . . Impact Corruptions . | . . . . Robots Melted . | . . . . Combat Hostiles . | . . . . Parts Melted . | . . . . Heat Transferred 100 | . 50 . 50 Parts Sabotaged . | . . . . Parts Stolen . | . . . . Parts Stripped . | . . . . Power Chain Reactions 1 | . 1 . . Missiles Intercepted . | . . . . Alert | -11 -10 -10 -10 ------- Run | Scr Mat Min Exi Peak Influence 206 | . 155 206 . Initial 60 | . . 60 . Average 54 | . 101 46 . Maximum Alert Level 1 | . . 1 . Low Security (%) 99 | 100 100 99 . Level 1 . | . . . . Level 2 . | . . . . Level 3 . | . . . . Level 4 . | . . . . Level 5 . | . . . . High Security . | . . . . Max Security . | . . . . Squads Dispatched 1 | . 1 . . Investigation . | . . . . Extermination . | . . . . Reinforcement 1 | . 1 . . Assault . | . . . . Garrison . | . . . . Intercept . | . . . . Construction Impeded . | . . . . Haulers Reinforced . | . . . . Stealth | -11 -10 -10 -10 --------- Run | Scr Mat Min Exi Distress Signals 1 | . 1 . . Communications Jammed . | . . . . Distress Signals . | . . . . Times Spotted 32 | . 10 14 8 Peak Tracking Total 8 | . 4 3 8 Tactical Retreats 1 | . . 1 . Traps | -11 -10 -10 -10 ------- Run | Scr Mat Min Exi Traps Triggered . | . . . . Indirectly . | . . . . Trap Hack Attempts . | . . . . Triggered . | . . . . Disarmed 1 | . 1 . . Reprogrammed . | . . . . Reused . | . . . . Traps Extracted . | . . . . Installed . | . . . . Triggered . | . . . . Machines | -11 -10 -10 -10 ---------- Run | Scr Mat Min Exi Machines Disabled 3 | . . 2 1 Max in Single Turn . | . . . . Machines Sabotaged . | . . . . Garrisons Compromised . | . . . . Overloaded Fab Kills . | . . . . Fab Network Shutdowns . | . . . . Hacking | -11 -10 -10 -10 --------- Run | Scr Mat Min Exi Machines Accessed 3 | . 2 1 . Terminals 3 | . 2 1 . Fabricators . | . . . . Repair Stations . | . . . . Recycling Units . | . . . . Scanalyzers . | . . . . Garrison Access . | . . . . Total Hacks 7 | . 6 1 . Successful 6 | . 5 1 . Failed 1 | . 1 . . Catastrophic . | . . . . Database Lockouts . | . . . . Manual . | . . . . Terminals 7 | . 6 1 . Fabricators . | . . . . Repair Stations . | . . . . Recycling Units . | . . . . Scanalyzers . | . . . . Garrison Access . | . . . . Terminal Hacks 6 | . 5 1 . Prototype ID Bank 1 | . 1 . . Disarm Traps 2 | . 2 . . Registered Prototypes 1 | . 1 . . Zone Layout 2 | . 1 1 . Fabricator Hacks . | . . . . Repair Station Hacks . | . . . . Recycling Unit Hacks . | . . . . Scanalyzer . | . . . . Garrison Access Hacks . | . . . . Unauthorized Hacks . | . . . . Terminals . | . . . . Fabricators . | . . . . Repair Stations . | . . . . Recycling Units . | . . . . Scanalyzers . | . . . . Garrison Access . | . . . . Data Cores Recovered . | . . . . Used . | . . . . Hacking Detections 1 | . 1 . . Full Trace Events . | . . . . Feedback Events . | . . . . Feedback Blocked . | . . . . Robot Schematics Acquired . | . . . . Robots Built . | . . . . Matter . | . . . . Time . | . . . . Total Robot Build Rating . | . . . . Part Schematics Acquired . | . . . . Parts Built . | . . . . Matter . | . . . . Time . | . . . . Total Part Build Rating . | . . . . Parts Repaired . | . . . . Time . | . . . . Parts Recycled . | . . . . Recycled Matter . | . . . . Retrieved Matter . | . . . . Retrieved Components . | . . . . Parts Scanalyzed . | . . . . Part Schematics Acquired . | . . . . Parts Damaged . | . . . . Bothacking | -11 -10 -10 -10 ------------ Run | Scr Mat Min Exi Used RIF Installer . | . . . . Robots Hacked . | . . . . Non-combat . | . . . . Combat . | . . . . Robot Hacks Applied . | . . . . Relay Couplers Released . | . . . . Robots Rewired . | . . . . Allies Hacked . | . . . . Hacks Repelled . | . . . . Allies | -11 -10 -10 -10 -------- Run | Scr Mat Min Exi Total Allies 3 | . . 3 . Largest Group 2 | . . 2 2 Highest-Rated Group 62 | . . 62 62 Highest-Rated Ally 31 | . . 31 31 Total Orders . | . . . . Ally Attacks 28 | . . 15 13 Total Damage 357 | . . 211 146 Kills 10 | . . 9 1 Allies Corrupted . | . . . . Allies Melted . | . . . . Intel | -11 -10 -10 -10 ------- Run | Scr Mat Min Exi Robot Analysis Total . | . . . . Derelict Logs Recovered 2 | . . 2 . Drone Launches . | . . . . Drone Recoveries . | . . . . Exploration | -11 -10 -10 -10 ------------- Run | Scr Mat Min Exi Turns Passed 1470 | 98 288 1018 66 Spaces Moved 801 | 57 156 568 20 Core 58 | 57 . . 1 Treads 8 | . . . 8 Legs 735 | . 156 568 11 Wheels . | . . . . Hover . | . . . . Flight . | . . . . Fastest Speed 50 | 50 120 150 180 Average Speed 162 | 149 132 171 191 Slowest Speed 400 | 200 150 180 400 Overloaded Moves . | . . . . Propulsion Burnouts . | . . . . Robots Hopped . | . . . . Cave-ins Triggered . | . . . . Exploration Rate (%) 36 | 6 32 100 7 Regions Visited 3 Branch Regions 2 Pre-discovered Areas 1 | . . 1 . Known Exits Taken . | . . . . Unknown Exits Taken 3 | 1 1 1 . Scrap Searched 1 | . . 1 . Spaces Dug . | . . . . Terrain Destroyed 15 | . 6 . 9 Melee . | . . . . Projectile . | . . . . AOE 15 | . 6 . 9 Terrain Rammed . | . . . . Walls Destroyed . | . . . . Machines Disabled . | . . . . Actions | -11 -10 -10 -10 --------- Run | Scr Mat Min Exi Total 892 | 69 190 601 32 Wait 21 | 1 1 19 . Move 798 | 56 155 567 20 Hop . | . . . . Pick Up 14 | 6 6 2 . Fast Attach 3 | 3 . . . Attach 9 | 3 1 2 3 Detach . | . . . . Swap 2 | . 1 1 . Drop 3 | . 2 1 . Fire 42 | . 24 9 9 Melee . | . . . . Ram . | . . . . Kick . | . . . . Crush . | . . . . Escape Stasis . | . . . . Rewire . | . . . . Trap . | . . . . Miscellaneous . | . . . . Route ------- -11/Scrapyard -10/Materials (discovered 2 exits: *Min x2) -10/Mines (discovered 3 exits: [*Mat x2] / [*Exi]) -10/Exiles History --------- Turn | Location | Event 5 | -11/Scrapyard | Discovered new exit (range 16) 99 | -11/Scrapyard | Entered Materials 194 | -10/Materials | Discovered new exit (range 7) 230 | -10/Materials | Discovered new exit (range 16) 308 | -10/Materials | Build established: Mutant 387 | -10/Materials | Entered Mines 388 | -10/Mines | Assembled infested the area 428 | -10/Mines | Met 8R-AWN 459 | -10/Mines | Attacked by 8R-AWN 543 | -10/Mines | Received a Rocket Launcher from a helpful Derelict 581 | -10/Mines | Learned location of 1 exit from Materials 626 | -10/Mines | Learned location of Mines (-9) 698 | -10/Mines | Discovered new exit (range 5) 734 | -10/Mines | Joined a pair of Derelicts in attacking an 0b10 outpost 978 | -10/Mines | Discovered new exit (range 6) 1378 | -10/Mines | Discovered new exit (range 8) 1381 | -10/Mines | Received a Mining Laser from a helpful Derelict 1405 | -10/Mines | Entered Exiles 1405 | -10/Exiles | Accompanied by 2 allies 1405 | -10/Exiles | Attacked by the Exiles 1438 | -10/Exiles | Core integrity fell below 50% 1465 | -10/Exiles | Core integrity fell below 20% 1471 | -10/Exiles | Destroyed by 8R-AWN with 8R-AWN's Boregun Last Messages --------------- 01453_ Penetrated by HV Slug. 01454_ Sml. Laser destroyed. 01455_ Penetrated by HV Slug. 01455_ HV Slug penetrates Wall. 01456_ Acquired 3 matter. 01457_ HV Slug penetrates Wall. 01457_ Penetrated by HV Slug. 01457_ Critical hit. 01457_ Assault Rifle destroyed. 01458_ Acquired 3 matter. 01458_ as-09646 destroyed. 01460_ Acquired 18 matter. 01462_ Penetrated by HV Slug. 01464_ HV Slug penetrates Wall. 01464_ Rigged Fission Core explodes. 01465_ 8R-AWN: "You again!" 01466_ Penetrated by HV Slug. 01466_ Critical hit. 01466_ Lgt. Treads destroyed. 01466_ Penetrated by HV Slug. Map ----- +----------------------------------------------------+ | ?????????????????????????????????????????????????? | | ?????????????????????????????????????????????????? | | ?????????????????????????????????????????????????? | | ?????????????????????????????????????????????????? | | ?????????????????????????????????????????????????? | | ?????????????????????????????????????????????????? | | ?????????????????????????????????????????????????? | | ?????????????????????????????????????????????????? | | ?????????????????????????????????????????????????? | | ?????????????????????????????????????????????????? | | ????????????????????????????? ???????????????????? | | ????????????????????????????# ?????????????????? | | ??????????????????????????## #????????????????? | | ??????????????????????????# ????????????????? | | ??????????????????????????# ????????????????? | | ?????????????????????????## ?????????????????? | | ????????????????????????## #?????????????????? | | ????????????????????????# ??????????????????? | | ??????????????####????### #??????????????????? | | ???????????? ## ?### ???????????????????? | | ???????????? # #???????????????????? | | ??????????? g %% * ##??????????????????? | | ??????????? * #??????????????????? | | ???????????? ##?????????????????? | | ????????????????# ###???????????????? | | ????????????????????# @ ###?????????????? | | ????????????????????####; ! ##????????????? | | ???????????????????????##;; %= #????????????? | | ????????????????????????#####!! #????????????? | | ????????????????????????????### #????????????? | | ?????????????????????????????#" ##???????????? | | ?????????????????????????????#### ###?????????? | | ????????????????????????????????# ##????????? | | ????????????????????????????????## ###??????? | | ?????????????????????????????????### #??????? | | ???????????????????????????????????# ##??????? | | ???????????????????????????????????## ##???????? | | ????????????????????????????????????#####????????? | | ?????????????????????????????????????????????????? | | ?????????????????????????????????????????????????? | | ?????????????????????????????????????????????????? | | ?????????????????????????????????????????????????? | | ?????????????????????????????????????????????????? | | ?????????????????????????????????????????????????? | | ?????????????????????????????????????????????????? | | ?????????????????????????????????????????????????? | | ?????????????????????????????????????????????????? | | ?????????????????????????????????????????????????? | | ?????????????????????????????????????????????????? | | ?????????????????????????????????????????????????? | +----------------------------------------------------+ Best States ------------- Heat Dissipation 35 Energy Generation 10 Energy Capacity 125 Matter Stores 300 Matter Capacity 300 Sight Range 16 Terrain Scan Density 10 Evasion (%) 50 Recoil Reduction 1 Item Schematics ----------------- None Robot Schematics ------------------ None Fabricated ------------ Nothing Alien Tech Used ----------------- None Achievements -------------- None Challenges ------------ None Game ------ Seed NovaDroneRegenerator Manual? 0 Play Time 00:14:32 Cumulative 5.8 hours Start 2020.11.01 @ 16:07:02 End 2020.11.01 @ 16:23:20 Sessions 1 Manual Loads 0 Difficulty Rogue Special Mode Halloween2020/ForbiddenLore Game No. 18 Rogue 18 Adventurer 0 Explorer 0 Win Type - Total 0 Types 0/0/0/0/0/0/0/0/0 Lore% 5 Gallery% 12 Achievement% 10 Wizard Run 0 Options --------- ASCII 0 Keyboard 0 Movement Mouse Keybinds 0 Fullscreen 1 Font 18/SmallcapsGlow Map View 76x50 Tactical HUD 1 Map Filters NONE Filters NONE Steam 1 RUN: d5660739-43a3-4abb-b21c-e68c39889074